[Event "WYCC 2018 G16"]
[Site "Halkidiki"]
[Date "2018.10.20"]
[Round "1"]
[White "Sosa Suarez, Carla Cristina"]
[Black "Cohen, Yael"]
[Result "1/2-1/2"]
[ECO "B70"]
[WhiteElo "2025"]
[BlackElo "1602"]
[Annotator "NA"]
[PlyCount "125"]
[EventDate "2018.10.20"]
[EventType "swiss"]
[EventCountry "GRE"]
[SourceTitle "playchess.com"]
[Source "ChessBase"]
[SourceQuality "1"]
[TimeControl "40/5400+30:1800+30"]

1. e4 {[%emt 0:00:00]} c5 {[%emt 0:00:00]} 2. Nf3 {[%emt 0:00:00]} d6 {[%emt 0:00:00]} 3. d4 {[%emt 0:00:00]} cxd4 {[%emt 0:00:00]} 4. Nxd4 {[%emt 0:00:00]} Nf6 {[%emt 0:00:08]} 5. Nc3 {[%emt 0:00:00]} g6 {[%emt 0:00:12]} 6. Bc4 {[%emt 0:00:47]} Bg7 {[%emt 0:00:55]} 7. O-O {[%emt 0:00:45]} O-O {[%emt 0:00:20]} 8. Re1 {[%emt 0:00:27]} Nc6 {[%emt 0:00:23]} 9. Nb3 {[%emt 0:01:37]} Be6 {[%emt 0:00:51] B70: Sicilian Dragon: 6 g3 and 6 Be2 (without a later Be3)} (9... a6 10. Bf1 b5 11. Nd5 Bb7 12. c3 Nd7 13. a4 bxa4 14. Rxa4 e6 15. Ne3 Nb6 16. Ra1 Qc7 17. Nc4 Nxc4 18. Bxc4 h5 19. Bf1 {½-½ (75) Khusnutdinov,R (2458)-Lu,S (2627) Doha 2016}) 10. Nd5 {[%emt 0:02:47]} Rc8 {[%emt 0:01:12]} 11. c3 Ne5 {[%emt 0:07:31]} 12. Bf1 {[%emt 0:33:37]} Bxd5 {[%emt 0:01:53]} 13. exd5 {[%emt 0:00:22]} Nc4 {[%emt 0:01:42]} 14. g3 $146 {[%emt 0:05:54]} ({Predecessor:} 14. a4 Nb6 15. g4 h6 16. Bg2 Re8 17. a5 Nc4 18. h3 Qc7 19. Ra4 b5 {0-1 (62) Zeller,F (2383)-Fedorovsky,M (2471) Karlsruhe 2018}) 14... Re8 {[%emt 0:10:28]} 15. a4 {[%emt 0:04:25]} a5 {[%emt 0:04:29]} 16. Bh3 {[%emt 0:05:59]} Ra8 {[%emt 0:04:16]} 17. Nd2 {[%emt 0:10:08]} Nxd2 {[%emt 0:06:42]} 18. Qxd2 {[%emt 0:00:21]} Qc7 {[%emt 0:03:19]} 19. Qd3 {[%emt 0:02:32]} Nd7 {[%emt 0:08:04]} 20. f4 {[%emt 0:03:05]} Nb6 {[%emt 0:07:03]} 21. Be3 {[%emt 0:03:51]} Qc4 {[%emt 0:02:50]} 22. Qxc4 {[%emt 0:04:55]} Nxc4 {[%emt 0:00:13]} 23. Rab1 {[%emt 0:00:57]} Nxe3 {[%emt 0:02:36]} 24. Rxe3 {[%emt 0:00:02]} f5 {[%emt 0:03:49]} 25. Bf1 {[%emt 0:03:54]} Bf6 {[%emt 0:03:20]} 26. Kg2 {[%emt 0:02:44]} Rac8 {[%emt 0:03:24]} 27. Bb5 {[%emt 0:01:50]} Red8 {[%emt 0:02:13]} 28. h3 {[%emt 0:00:20]} Rc5 {[%emt 0:02:01]} 29. Rd1 {[%emt 0:00:25]} Kf7 {[%emt 0:02:09]} 30. g4 {[%emt 0:00:24]} fxg4 {[%emt 0:03:01]} 31. hxg4 {[%emt 0:00:04]} h6 {[%emt 0:01:39]} 32. Rh3 {[%emt 0:01:26]} Rh8 {[%emt 0:00:56]} 33. Kf3 {[%emt 0:01:09]} g5 {[%emt 0:02:53]} 34. f5 {[%emt 0:00:36]} Bg7 {[%emt 0:00:51]} 35. Ke4 {[%emt 0:00:06]} Rhc8 {[%emt 0:01:41]} 36. Ra1 {[%emt 0:01:23]} Rc4+ {[%emt 0:09:47]} 37. Bxc4 {[%emt 0:03:05]} Rxc4+ {[%emt 0:00:09]} 38. Kf3 {[%emt 0:00:47]} Rf4+ {[%emt 0:00:12]} 39. Ke3 {[%emt 0:00:14]} Rxg4 {[%emt 0:00:22]} 40. Ra3 {[%emt 0:00:00]} Rc4 {[%emt 0:00:00]} 41. Ra1 {[%emt 0:11:17]} g4 {[%emt 0:07:20]} 42. Rhh1 {[%emt 0:01:23]} Kf6 {[%emt 0:01:21]} 43. Rh5 {[%emt 0:02:35]} Kf7 {[%emt 0:02:55]} 44. Rg1 {[%emt 0:07:24]} Kf6 {[%emt 0:02:29]} 45. b3 {[%emt 0:05:48]} Rxc3+ {[%emt 0:01:37]} 46. Kd2 {[%emt 0:00:05]} Rxb3 {[%emt 0:02:38]} 47. Rxg4 {[%emt 0:00:12]} Rb2+ {[%emt 0:02:45]} 48. Kd3 {[%emt 0:01:54]} Rb3+ {[%emt 0:01:46]} 49. Kc2 {[%emt 0:00:07]} Re3 {[%emt 0:00:35]} 50. Rg6+ {[%emt 0:00:22]} Kf7 {[%emt 0:00:17]} 51. Rg4 {[%emt 0:00:40]} Re5 {[%emt 0:00:29]} 52. Rd4 {[%emt 0:01:50]} Re2+ {[%emt 0:01:16]} 53. Rd2 {[%emt 0:00:01]} Re4 $11 {[%emt 0:00:30]} 54. Kb3 {[%emt 0:00:19]} Rb4+ {[%emt 0:01:20]} 55. Ka3 {[%emt 0:00:24]} Bc3 {[%emt 0:06:44]} 56. Rc2 {[%emt 0:00:54]} Bg7 {[%emt 0:01:03]} 57. Rd2 {[%emt 0:01:03]} Bc3 {[%emt 0:00:51]} 58. Rd3 {[%emt 0:00:18]} Bb2+ {[%emt 0:00:48]} 59. Ka2 {[%emt 0:00:15]} Bc1 {[%emt 0:01:14]} 60. Rb3 {[%emt 0:01:30]} Rxa4+ {[%emt 0:00:36]} 61. Kb1 {[%emt 0:00:04]} Bg5 {[%emt 0:01:19]} 62. Rxb7 Kf6 {[%emt 0:00:18]} 63. Rh2 {[%emt 0:02:35]} 1/2-1/2

[Event "WYCC 2018 G16"]
[Site "Halkidiki"]
[Date "2018.10.20"]
[Round "1"]
[White "Hercog, Nusa"]
[Black "Cotun, Mihaela"]
[Result "1-0"]
[ECO "D43"]
[WhiteElo "2017"]
[BlackElo "1482"]
[Annotator "NA"]
[PlyCount "53"]
[EventDate "2018.10.20"]
[EventType "swiss"]
[EventCountry "GRE"]
[SourceTitle "playchess.com"]
[Source "ChessBase"]
[SourceQuality "1"]
[TimeControl "40/5400+30:1800+30"]

1. d4 {[%emt 0:00:00]} d5 {[%emt 0:00:00]} 2. c4 {[%emt 0:00:00]} e6 {[%emt 0:00:00]} 3. Nf3 {[%emt 0:00:00]} Nf6 {[%emt 0:00:00]} 4. Nc3 {[%emt 0:00:03]} c6 {[%emt 0:00:22]} 5. Qb3 {[%emt 0:00:29]} dxc4 {[%emt 0:02:52]} 6. Qxc4 {[%emt 0:00:07]} b5 {[%emt 0:00:37]} 7. Qd3 {[%emt 0:00:07]} Bb7 {[%emt 0:03:04]} 8. Bg5 {[%emt 0:01:21]} Be7 {[%emt 0:01:04]} 9. e4 {[%emt 0:09:25]} a6 {[%emt 0:04:21]} 10. Be2 {[%emt 0:15:09]} Nbd7 {[%emt 0:05:24]} 11. O-O {[%emt 0:04:39]} c5 {[%emt 0:12:20]} 12. e5 {[%emt 0:07:47]} Nd5 {[%emt 0:04:31]} 13. Ne4 {[%emt 0:16:01]} O-O {[%emt 0:04:30]} 14. Bxe7 {[%emt 0:02:57]} Qxe7 {[%emt 0:02:42]} 15. Nfg5 {[%emt 0:10:32]} g6 {[%emt 0:07:54]} 16. f4 {[%emt 0:04:59]} h6 {[%emt 0:04:57]} 17. Nh3 {[%emt 0:00:58]} Nb4 {[%emt 0:02:49]} 18. Qb1 {[%emt 0:02:34]} c4 {[%emt 0:14:41]} 19. Nhf2 {[%emt 0:03:55]} Nd5 {[%emt 0:01:20]} 20. Qc1 {[%emt 0:01:02]} Kg7 {[%emt 0:03:56]} 21. Nd6 {[%emt 0:01:43]} Bc6 {[%emt 0:09:48]} 22. Bf3 {[%emt 0:04:12]} Rab8 {[%emt 0:03:53]} 23. Ng4 {[%emt 0:01:15]} h5 {[%emt 0:01:06]} 24. Bxd5 {[%emt 0:03:43]} Bxd5 {[%emt 0:00:25]} 25. f5 {[%emt 0:02:42]} exf5 {[%emt 0:04:29]} 26. Nxf5+ {[%emt 0:00:37]} gxf5 {[%emt 0:02:52]} 27. Qh6+ {[%emt 0:00:05]} 1-0

[Event "WYCC 2018 G16"]
[Site "Halkidiki"]
[Date "2018.10.20"]
[Round "1"]
[White "Bogdanic, Katarina"]
[Black "Quintana Chanduvi, Daniela Sofia"]
[Result "1-0"]
[ECO "A37"]
[WhiteElo "2014"]
[BlackElo "1400"]
[Annotator "NA"]
[PlyCount "151"]
[EventDate "2018.10.20"]
[EventType "swiss"]
[EventCountry "GRE"]
[SourceTitle "playchess.com"]
[Source "ChessBase"]
[SourceQuality "1"]
[TimeControl "40/5400+30:1800+30"]

1. Nf3 {[%emt 0:00:00]} c5 {[%emt 0:00:00]} 2. c4 {[%emt 0:00:00]} g6 {[%emt 0:00:00]} 3. g3 {[%emt 0:00:58]} Bg7 {[%emt 0:00:01]} 4. Bg2 {[%emt 0:00:16]} Nc6 {[%emt 0:00:50]} 5. Nc3 {[%emt 0:00:28]} e5 {[%emt 0:00:22]} 6. O-O {[%emt 0:01:21]} d6 {[%emt 0:00:39]} 7. d3 {[%emt 0:02:33]} Nge7 {[%emt 0:00:36]} 8. Ne1 {[%emt 0:10:08]} O-O {[%emt 0:05:49]} 9. Nc2 {[%emt 0:00:22]} a6 {[%emt 0:00:47]} 10. Ne3 {[%emt 0:01:19]} Rb8 {[%emt 0:00:12]} 11. Ned5 {[%emt 0:06:04]} b5 {[%emt 0:00:31]} 12. Bg5 {[%emt 0:13:22]} Kh8 {[%emt 0:21:42]} 13. Qd2 {[%emt 0:07:51]} Be6 {[%emt 0:05:22]} 14. Bf6 {[%emt 0:09:15]} Bxf6 {[%emt 0:09:34]} 15. Nxf6 {[%emt 0:00:05]} Kg7 {[%emt 0:01:31]} 16. Nfd5 {[%emt 0:07:00]} f5 {[%emt 0:11:18]} 17. f4 {[%emt 0:02:04]} bxc4 {[%emt 0:03:58]} 18. dxc4 {[%emt 0:04:33]} e4 {[%emt 0:11:02]} 19. Rad1 {[%emt 0:02:02]} Nb4 {[%emt 0:03:15]} 20. Nxe7 {[%emt 0:06:24]} Qxe7 {[%emt 0:02:13]} 21. a3 {[%emt 0:00:52]} Nc6 {[%emt 0:01:45]} 22. Qxd6 {[%emt 0:03:16]} Qxd6 {[%emt 0:03:18]} 23. Rxd6 {[%emt 0:00:03]} Nd8 {[%emt 0:00:16]} 24. Rfd1 {[%emt 0:04:24]} Bxc4 {[%emt 0:03:50]} 25. Bf1 {[%emt 0:03:17]} Nf7 {[%emt 0:02:56]} 26. Rc6 {[%emt 0:00:07]} Rfc8 {[%emt 0:01:26]} 27. Rxc8 {[%emt 0:00:30]} Rxc8 {[%emt 0:00:03]} 28. Rd7 {[%emt 0:01:30]} Rc6 {[%emt 0:03:07]} 29. Rb7 {[%emt 0:01:46]} Kf8 {[%emt 0:01:29]} 30. Rb8+ {[%emt 0:00:17]} Ke7 {[%emt 0:01:17]} 31. Na4 {[%emt 0:00:49]} Kd7 {[%emt 0:02:44]} 32. e3 {[%emt 0:01:53]} Bxf1 {[%emt 0:00:18]} 33. Kxf1 {[%emt 0:00:03]} Ke6 {[%emt 0:00:49]} 34. Nc3 {[%emt 0:01:45]} c4 {[%emt 0:01:03]} 35. Re8+ {[%emt 0:00:54]} Kd6 {[%emt 0:00:23]} 36. Rf8 {[%emt 0:00:48]} Nh6 {[%emt 0:01:58]} 37. h3 {[%emt 0:00:21]} Rc7 {[%emt 0:00:17]} 38. Rf6+ {[%emt 0:00:13]} Kc5 {[%emt 0:00:21]} 39. Rxa6 {[%emt 0:00:19]} Rb7 {[%emt 0:00:17]} 40. Ra5+ {[%emt 0:00:00]} Kc6 {[%emt 0:00:00]} 41. Na4 {[%emt 0:01:18]} Rb5 {[%emt 0:06:07]} 42. Ra6+ {[%emt 0:00:32]} Kb7 {[%emt 0:04:24]} 43. Rd6 {[%emt 0:00:41]} Ka7 {[%emt 0:01:24]} 44. Rc6 {[%emt 0:00:42]} Ng8 {[%emt 0:05:11]} 45. Rxc4 {[%emt 0:00:23]} Nf6 {[%emt 0:00:30]} 46. b4 {[%emt 0:02:11]} Kb8 {[%emt 0:02:26]} 47. Nc3 {[%emt 0:01:45]} Rb7 {[%emt 0:01:05]} 48. a4 {[%emt 0:00:28]} Ne8 {[%emt 0:07:42]} 49. Rd4 {[%emt 0:00:15]} Ka7 {[%emt 0:01:06]} 50. Nb5+ {[%emt 0:07:47]} Ka6 {[%emt 0:03:22]} 51. Rd5 {[%emt 0:04:39]} Nc7 {[%emt 0:00:27]} 52. Rd6+ {[%emt 0:00:11]} Rb6 {[%emt 0:01:55]} 53. Nxc7+ {[%emt 0:00:06]} Kb7 {[%emt 0:00:09]} 54. Rxb6+ {[%emt 0:00:09]} Kxb6 {[%emt 0:00:08]} 55. Nd5+ {[%emt 0:00:04]} Kc6 {[%emt 0:00:24]} 56. Nf6 {[%emt 0:00:03]} h6 {[%emt 0:00:18]} 57. Ng8 {[%emt 0:00:07]} g5 {[%emt 0:00:25]} 58. Nxh6 {[%emt 0:00:08]} gxf4 {[%emt 0:00:07]} 59. gxf4 {[%emt 0:00:04]} Kc7 {[%emt 0:00:17]} 60. Nxf5 {[%emt 0:00:05]} Kd7 {[%emt 0:00:16]} 61. h4 {[%emt 0:00:06]} Ke6 {[%emt 0:00:09]} 62. Nd4+ {[%emt 0:00:14]} Kd5 {[%emt 0:00:15]} 63. a5 {[%emt 0:00:11]} Kc4 {[%emt 0:00:08]} 64. a6 {[%emt 0:00:17]} Kxb4 {[%emt 0:00:07]} 65. a7 {[%emt 0:00:05]} Kc3 {[%emt 0:00:10]} 66. a8=Q {[%emt 0:00:07]} Kd3 {[%emt 0:00:06]} 67. Qa3+ {[%emt 0:00:21]} Kc4 {[%emt 0:00:07]} 68. Qb3+ {[%emt 0:00:12]} Kc5 {[%emt 0:00:11]} 69. Qb5+ {[%emt 0:00:03]} Kd6 {[%emt 0:00:11]} 70. Qe5+ {[%emt 0:00:08]} Kd7 {[%emt 0:00:14]} 71. Qe6+ {[%emt 0:00:16]} Kc7 {[%emt 0:00:15]} 72. Qc6+ {[%emt 0:00:28]} Kd8 {[%emt 0:00:07]} 73. Qb7 {[%emt 0:00:12]} Ke8 {[%emt 0:00:06]} 74. Qc7 {[%emt 0:00:07]} Kf8 {[%emt 0:00:07]} 75. Ne6+ {[%emt 0:00:03]} Kg8 {[%emt 0:00:11]} 76. Qg7# {[%emt 0:00:06]} 1-0

[Event "WYCC 2018 G16"]
[Site "Halkidiki"]
[Date "2018.10.20"]
[Round "1"]
[White "Kobald, Jacqueline"]
[Black "Solozhenkina, Elizaveta"]
[Result "0-1"]
[ECO "B91"]
[WhiteElo "1911"]
[BlackElo "2276"]
[Annotator "NA"]
[PlyCount "52"]
[EventDate "2018.10.20"]
[EventType "swiss"]
[EventCountry "GRE"]
[SourceTitle "playchess.com"]
[Source "ChessBase"]
[SourceQuality "1"]
[TimeControl "40/5400+30:1800+30"]

1. e4 {[%emt 0:00:00]} c5 {[%emt 0:00:00]} 2. Nf3 {[%emt 0:00:00]} d6 {[%emt 0:00:00]} 3. d4 {[%emt 0:00:00]} cxd4 {[%emt 0:00:00]} 4. Nxd4 {[%emt 0:00:00]} Nf6 {[%emt 0:00:00]} 5. Nc3 {[%emt 0:00:01]} a6 {[%emt 0:00:00]} 6. g3 {[%emt 0:00:38]} e5 {[%emt 0:00:36]} 7. Nde2 {[%emt 0:00:09]} Be7 {[%emt 0:00:49]} 8. Bg2 {[%emt 0:00:28]} O-O {[%emt 0:00:28]} 9. h3 {[%emt 0:00:25]} b5 {[%emt 0:09:32]} 10. a4 {[%emt 0:07:31]} b4 {[%emt 0:00:46]} 11. Nd5 {[%emt 0:00:07]} Nxd5 {[%emt 0:00:30]} 12. exd5 {[%emt 0:01:04]} Nd7 {[%emt 0:07:17]} 13. O-O $15 {[%emt 0:08:23]} a5 {[%emt 0:10:46]} 14. Kh2 {[%emt 0:20:01]} Ba6 {[%emt 0:03:48]} 15. f4 {[%emt 0:12:13]} Rc8 {[%emt 0:07:45]} 16. Be3 {[%emt 0:04:49]} Qc7 {[%emt 0:12:48]} 17. Rc1 {[%emt 0:01:37]} exf4 {[%emt 0:02:12]} 18. Rxf4 {[%emt 0:07:15]} Rfe8 {[%emt 0:07:31]} 19. Nd4 {[%emt 0:21:31]} Bg5 {[%emt 0:00:55]} 20. Rxf7 {[%emt 0:01:14]} Bxe3 {[%emt 0:27:53]} 21. Ne6 {[%emt 0:07:05]} Kxf7 {[%emt 0:00:05]} 22. Nxc7 {[%emt 0:00:51]} Rxc7 {[%emt 0:00:04]} 23. Qf3+ {[%emt 0:00:59]} Nf6 {[%emt 0:00:28]} 24. Re1 {[%emt 0:01:22]} Rce7 {[%emt 0:01:01]} 25. Kh1 {[%emt 0:01:38]} Bc4 {[%emt 0:01:50]} 26. Rd1 {[%emt 0:01:40]} Bc5 {[%emt 0:00:43]} 0-1

[Event "WYCC 2018 G16"]
[Site "Halkidiki"]
[Date "2018.10.20"]
[Round "1"]
[White "Nemcova, Karin"]
[Black "Beydullayeva, Govhar"]
[Result "0-1"]
[ECO "C45"]
[WhiteElo "1888"]
[BlackElo "2202"]
[Annotator "NA"]
[PlyCount "84"]
[EventDate "2018.10.20"]
[EventType "swiss"]
[EventCountry "GRE"]
[SourceTitle "playchess.com"]
[Source "ChessBase"]
[SourceQuality "1"]
[TimeControl "40/5400+30:1800+30"]

1. e4 {[%emt 0:00:00]} e5 {[%emt 0:00:00]} 2. Nf3 {[%emt 0:00:00]} Nc6 {[%emt 0:00:00]} 3. d4 {[%emt 0:00:39]} exd4 {[%emt 0:00:00]} 4. Nxd4 {[%emt 0:00:08]} Bc5 {[%emt 0:00:15]} 5. Nb3 {[%emt 0:00:09]} Bb6 {[%emt 0:00:05]} 6. Nc3 {[%emt 0:00:10]} Nge7 {[%emt 0:00:48]} 7. Qe2 {[%emt 0:00:59] C45: Scotch Game} (7. Bg5 f6 8. Bh4 O-O 9. Qd2 a5 10. a4 d6 11. O-O-O Be6 12. f4 Bxb3 13. cxb3 Nd4 14. Bc4+ Kh8 {½-½ (41) Mastrovasilis,D (2594)-Georgiev,V (2479) Batumi 2018}) 7... O-O {[%emt 0:00:21]} 8. Be3 {[%emt 0:01:09]} f5 {[%emt 0:00:17]} 9. f4 {[%emt 0:05:23]} fxe4 {[%emt 0:03:57]} 10. O-O-O {[%emt 0:02:46]} d6 {[%emt 0:14:31]} 11. Bxb6 {[%emt 0:09:59]} axb6 {[%emt 0:00:06]} 12. g3 {[%emt 0:00:13]} Qe8 {[%emt 0:09:00]} 13. Kb1 {[%emt 0:15:53]} Qf7 $146 {[%emt 0:12:06]} ({Predecessor:} 13... Qg6 14. Qxe4 Bf5 15. Qg2 {½-½ (64) Ruiz Castillo,J (2370)-Cuellar Elisvan,D (2323) Asuncion 2013}) 14. Qxe4 {[%emt 0:03:54]} Bf5 {[%emt 0:00:15]} 15. Bc4 {[%emt 0:01:40]} d5 {[%emt 0:03:30]} 16. Bxd5 {[%emt 0:00:34]} Nxd5 {[%emt 0:00:04]} 17. Qxd5 {[%emt 0:00:19]} Bxc2+ {[%emt 0:00:06]} 18. Kc1 {[%emt 0:00:36]} Bxd1 {[%emt 0:00:17]} 19. Rxd1 {[%emt 0:07:00]} Rad8 {[%emt 0:00:36]} 20. Qf3 {[%emt 0:08:40]} Rxd1+ {[%emt 0:00:28]} 21. Qxd1 {[%emt 0:00:38]} Rd8 {[%emt 0:00:30]} 22. Qe2 {[%emt 0:01:36]} Nb4 {[%emt 0:03:51]} 23. Qb5 {[%emt 0:14:26]} Qe7 {[%emt 0:02:17]} 24. Qc4+ {[%emt 0:02:29]} Kh8 {[%emt 0:00:14]} 25. Qf1 {[%emt 0:04:31]} Qe3+ {[%emt 0:00:52]} 26. Kb1 $19 {[%emt 0:00:08]} Qd3+ {[%emt 0:02:09]} 27. Qxd3 {[%emt 0:00:09]} Rxd3 {[%emt 0:00:34]} 28. a3 {[%emt 0:01:13]} Nc6 {[%emt 0:00:21]} 29. Kc2 {[%emt 0:00:44]} Rf3 {[%emt 0:01:03]} 30. Nd2 {[%emt 0:02:58]} Nd4+ {[%emt 0:00:44]} 31. Kd1 {[%emt 0:00:32]} Rf2 {[%emt 0:00:17]} 32. h4 {[%emt 0:04:36]} Rg2 {[%emt 0:00:12]} 33. Nde4 {[%emt 0:00:11]} Kg8 {[%emt 0:04:56]} 34. b4 {[%emt 0:01:48]} c6 {[%emt 0:02:19]} 35. h5 {[%emt 0:05:37]} h6 {[%emt 0:00:33]} 36. Na4 {[%emt 0:02:44]} b5 {[%emt 0:03:33]} 37. Nac5 {[%emt 0:00:37]} b6 {[%emt 0:00:23]} 38. Nd7 {[%emt 0:00:30]} Ra2 {[%emt 0:00:12]} 39. g4 {[%emt 0:02:16]} Rxa3 {[%emt 0:01:04]} 40. Ne5 {[%emt 0:00:00]} Re3 {[%emt 0:00:00]} 41. Nd6 {[%emt 0:02:00]} Nf3 {[%emt 0:05:08]} 42. Nf5 {[%emt 0:01:21]} Re1+ {[%emt 0:00:07]} 0-1

[Event "WYCC 2018 G16"]
[Site "Halkidiki"]
[Date "2018.10.20"]
[Round "1"]
[White "Moerwald, Magdalena"]
[Black "Getman, Tatyana"]
[Result "0-1"]
[ECO "B53"]
[WhiteElo "1875"]
[BlackElo "2195"]
[Annotator "NA"]
[PlyCount "78"]
[EventDate "2018.10.20"]
[EventType "swiss"]
[EventCountry "GRE"]
[SourceTitle "playchess.com"]
[Source "ChessBase"]
[SourceQuality "1"]
[TimeControl "40/5400+30:1800+30"]

1. e4 {[%emt 0:00:00]} c5 {[%emt 0:00:00]} 2. Nf3 {[%emt 0:00:00]} d6 {[%emt 0:00:00]} 3. d4 {[%emt 0:00:00]} cxd4 {[%emt 0:00:00]} 4. Qxd4 {[%emt 0:00:00]} Nf6 {[%emt 0:00:00]} 5. Nc3 {[%emt 0:03:06]} Nc6 {[%emt 0:00:56]} 6. Bb5 {[%emt 0:01:31]} Bd7 {[%emt 0:00:12]} 7. Bxc6 {[%emt 0:00:08]} Bxc6 {[%emt 0:00:07]} 8. Bg5 {[%emt 0:00:24]} e6 {[%emt 0:04:53]} 9. O-O-O {[%emt 0:00:23]} Be7 {[%emt 0:04:15]} 10. Rhe1 {[%emt 0:00:25]} Qa5 {[%emt 0:06:54]} 11. Bh4 {[%emt 0:14:33] B53: Sicilian: 2...d6: Lines with Qxd4} (11. Kb1 O-O 12. Qd2 Rfd8 13. Nd4 Qc7 14. f3 a6 15. g4 b5 16. Nce2 Bb7 17. h4 Rac8 18. Ng3 Ne8 19. f4 Nf6 20. f5 Qd7 {½-½ (47) Paichadze,L (2564)-Tutisani,N (2469) Poti 2018}) 11... O-O $146 {[%emt 0:01:48]} ({Predecessor:} 11... Rd8) 12. Nd2 {[%emt 0:03:36]} (12. a3 $11) 12... b5 {[%emt 0:07:25]} 13. Nb3 {[%emt 0:03:36]} Qa6 {[%emt 0:00:47]} 14. Bg3 {[%emt 0:04:03]} Rfd8 {[%emt 0:03:35]} 15. a3 {[%emt 0:05:21]} Nh5 {[%emt 0:15:58]} 16. Na2 {[%emt 0:03:36]} Nxg3 {[%emt 0:04:02]} 17. hxg3 {[%emt 0:02:24]} Qc8 {[%emt 0:03:06]} 18. Qc3 {[%emt 0:04:51]} Bf6 {[%emt 0:03:42]} 19. Nd4 {[%emt 0:02:12]} Be8 {[%emt 0:00:42]} 20. Qxc8 {[%emt 0:01:12]} Raxc8 {[%emt 0:00:15]} 21. Nc3 {[%emt 0:01:54]} Rc5 {[%emt 0:01:29]} 22. f4 {[%emt 0:06:32]} a5 $17 {[%emt 0:02:50]} 23. Kb1 {[%emt 0:05:20]} Rdc8 {[%emt 0:06:07]} 24. e5 {[%emt 0:02:42]} dxe5 {[%emt 0:06:27]} 25. Nb3 {[%emt 0:01:23]} R5c7 {[%emt 0:00:54]} 26. fxe5 {[%emt 0:00:49]} Be7 {[%emt 0:00:11]} 27. Nd4 {[%emt 0:05:08]} b4 {[%emt 0:06:44]} 28. axb4 {[%emt 0:02:19]} Bxb4 {[%emt 0:00:02]} 29. Re3 {[%emt 0:03:42]} Bxc3 {[%emt 0:00:57]} 30. Rxc3 {[%emt 0:00:29]} Rxc3 {[%emt 0:00:40]} 31. bxc3 {[%emt 0:00:12]} Rxc3 {[%emt 0:00:58]} 32. Nb5 {[%emt 0:01:10]} Rc5 {[%emt 0:02:05]} 33. Nd6 {[%emt 0:02:10]} Ba4 {[%emt 0:00:20]} 34. Rd2 {[%emt 0:01:33]} Rxe5 {[%emt 0:01:59]} 35. Rd4 {[%emt 0:03:31]} Bd7 {[%emt 0:06:49]} 36. Nc8 {[%emt 0:01:15]} Rb5+ {[%emt 0:01:44]} 37. Kc1 {[%emt 0:01:51]} Rb7 {[%emt 0:00:31]} 38. Nd6 {[%emt 0:02:19]} Rb4 {[%emt 0:00:52]} 39. Rd3 {[%emt 0:01:27]} f6 {[%emt 0:03:25]} 0-1

[Event "WYCC 2018 G16"]
[Site "Halkidiki"]
[Date "2018.10.20"]
[Round "1"]
[White "Nayberg, Simona"]
[Black "Berdnyk, Mariia"]
[Result "0-1"]
[ECO "B22"]
[WhiteElo "1857"]
[BlackElo "2179"]
[Annotator "NA"]
[PlyCount "26"]
[EventDate "2018.10.20"]
[EventType "swiss"]
[EventCountry "GRE"]
[SourceTitle "playchess.com"]
[Source "ChessBase"]
[SourceQuality "1"]
[TimeControl "40/5400+30:1800+30"]

1. e4 {[%emt 0:00:00]} c5 {[%emt 0:00:00]} 2. c3 {[%emt 0:00:00]} d5 {[%emt 0:00:00]} 3. exd5 {[%emt 0:00:00]} Qxd5 {[%emt 0:00:00]} 4. d4 {[%emt 0:00:10]} Nc6 {[%emt 0:00:00]} 5. Nf3 {[%emt 0:00:18]} Bf5 {[%emt 0:00:00]} 6. Be3 {[%emt 0:00:28]} e6 {[%emt 0:00:08]} 7. Na3 {[%emt 0:01:33]} cxd4 {[%emt 0:09:42]} 8. Nb5 {[%emt 0:04:00]} O-O-O {[%emt 0:02:06]} 9. Nbxd4 $14 {[%emt 0:05:38]} Nxd4 {[%emt 0:14:55]} 10. Nxd4 {[%emt 0:09:13]} Bc5 {[%emt 0:06:26]} 11. Qa4 {[%emt 0:25:23]} Bg4 {[%emt 0:10:54]} 12. Qc4 {[%emt 0:05:11]} Nf6 {[%emt 0:01:53]} 13. Nc2 {[%emt 0:04:25]} Qd1+ {[%emt 0:00:12]} 0-1

[Event "WYCC 2018 G16"]
[Site "Halkidiki"]
[Date "2018.10.20"]
[Round "1"]
[White "Puppi Lazo, Stephanie Beatriz"]
[Black "Goltseva, Ekaterina"]
[Result "0-1"]
[ECO "C45"]
[WhiteElo "1847"]
[BlackElo "2169"]
[Annotator "NA"]
[PlyCount "64"]
[EventDate "2018.10.20"]
[EventType "swiss"]
[EventCountry "GRE"]
[SourceTitle "playchess.com"]
[Source "ChessBase"]
[SourceQuality "1"]
[TimeControl "40/5400+30:1800+30"]

1. e4 {[%emt 0:00:00]} e5 {[%emt 0:00:00]} 2. Nf3 {[%emt 0:00:00]} Nc6 {[%emt 0:00:00]} 3. d4 {[%emt 0:00:00]} exd4 {[%emt 0:00:50]} 4. Nxd4 {[%emt 0:00:00]} Nf6 {[%emt 0:03:48]} 5. Nxc6 {[%emt 0:00:00]} bxc6 {[%emt 0:00:09]} 6. e5 {[%emt 0:00:00]} Qe7 {[%emt 0:00:38]} 7. Qe2 {[%emt 0:00:05]} Nd5 {[%emt 0:00:15]} 8. h4 {[%emt 0:00:24]} f6 {[%emt 0:10:40] C45: Scotch Game} 9. c4 {[%emt 0:40:59]} Ba6 {[%emt 0:05:57]} 10. g3 $146 {[%emt 0:01:02]} ({Predecessor:} 10. Rh3 fxe5 11. Bg5 Nf6 12. Re3 O-O-O 13. Ra3 Bb7 14. Rxa7 Qe6 15. Nd2 Bb4 16. O-O-O {½-½ (54) Cheparinov,I (2718)-Aravindh,C (2581) Abu Dhabi 2018}) 10... Nb6 {[%emt 0:05:03]} 11. exf6 {[%emt 0:01:50]} Qxe2+ {[%emt 0:09:08]} 12. Bxe2 {[%emt 0:00:06]} Bxc4 {[%emt 0:02:35]} 13. Bxc4 {[%emt 0:09:17]} Nxc4 {[%emt 0:00:13]} 14. b3 {[%emt 0:00:17]} Ne5 {[%emt 0:05:34]} 15. Ke2 {[%emt 0:05:47]} gxf6 {[%emt 0:00:41]} 16. f4 {[%emt 0:00:24]} Ng4 {[%emt 0:01:23]} 17. Bb2 {[%emt 0:01:47]} h5 {[%emt 0:01:32]} 18. Nd2 {[%emt 0:02:43]} Kf7 {[%emt 0:01:41]} 19. Kf3 {[%emt 0:02:05]} Re8 {[%emt 0:14:21]} 20. Ne4 {[%emt 0:03:33]} d5 {[%emt 0:01:30]} 21. Ng5+ {[%emt 0:09:38]} Kg6 {[%emt 0:00:24]} 22. Rae1 {[%emt 0:00:14]} Bb4 {[%emt 0:00:45]} 23. Re6 {[%emt 0:04:39]} Kf5 {[%emt 0:03:51]} 24. a3 {[%emt 0:01:00]} Ba5 $19 {[%emt 0:01:07]} ({Not} 24... Rxe6 25. Nxe6 Kxe6 26. axb4 $17) 25. b4 {[%emt 0:00:20]} Rxe6 {[%emt 0:01:54]} 26. Nxe6 {[%emt 0:00:14]} Kxe6 {[%emt 0:00:03]} 27. bxa5 {[%emt 0:00:07]} c5 {[%emt 0:00:53]} 28. Re1+ {[%emt 0:00:24]} Kd7 {[%emt 0:00:18]} 29. f5 {[%emt 0:01:50]} Rb8 {[%emt 0:02:04]} 30. Re2 {[%emt 0:04:06]} Rb3+ {[%emt 0:01:15]} 31. Kf4 {[%emt 0:01:50]} d4 {[%emt 0:00:58]} 32. Rd2 {[%emt 0:02:06]} Ne5 {[%emt 0:01:07]} 0-1